bitfinex/quotes_BTCUSD_20250813
["timestamp","ask_amount","ask_price","bid_price","bid_amount"]
[1755113674094,0.97150649,122310.0,122300.0,0.42676013]
[1755113675782,0.97150649,122310.0,122300.0,0.29800013]
[1755113675990,0.97150649,122310.0,122300.0,0.42676013]
[1755113676389,0.97150649,122310.0,122300.0,0.10200013]
[1755113676590,1.05399092,122310.0,122300.0,0.42680013]
[1755113676802,0.49,122290.0,122280.0,0.02]
[1755113677151,1.03510893,122290.0,122280.0,0.34488014]
[1755113677447,1.03826893,122290.0,122280.0,0.34488014]
[1755113679048,1.14558817,122290.0,122280.0,0.21612014]
[1755113679253,1.18803719,122290.0,122280.0,0.21612014]
[1755113679496,1.18803719,122290.0,122280.0,0.34488014]
[1755113679657,1.18803719,122290.0,122280.0,0.21612014]
[1755113679857,1.18803719,122290.0,122280.0,0.34488014]
[1755113680062,1.20870426,122290.0,122280.0,0.34488014]
[1755113680279,1.20934075,122290.0,122280.0,0.34488014]
[1755113680975,1.16383887,122290.0,122280.0,0.34488014]
[1755113681176,1.08135444,122290.0,122280.0,0.34488014]
[1755113681396,1.10587644,122290.0,122280.0,0.34488014]
[1755113681822,1.10587644,122290.0,122280.0,0.21612014]
[1755113682035,1.10587644,122290.0,122280.0,0.34488014]
[1755113683354,1.10587644,122290.0,122280.0,0.02008014]
[1755113683529,1.21336087,122290.0,122280.0,0.21612014]
[1755113683730,1.21336087,122290.0,122280.0,0.34488014]
[1755113685032,1.23819568,122290.0,122280.0,0.21612014]
[1755113685418,1.25886275,122290.0,122280.0,0.34488014]
[1755113686023,1.25886275,122290.0,122280.0,0.21612014]
[1755113686371,1.25886275,122290.0,122280.0,0.34488014]
[1755113686726,1.25886275,122290.0,122280.0,0.21612014]
[1755113686884,1.25886275,122290.0,122280.0,0.34488014]
[1755113687480,1.25886275,122290.0,122280.0,0.21612014]
[1755113687684,1.25886275,122290.0,122280.0,0.3367104]
[1755113688108,1.25886275,122290.0,122280.0,0.32854066]
[1755113688514,0.38244902,122280.0,122270.0,0.10192]
[1755113688849,0.92335444,122280.0,122270.0,0.29812037]
[1755113689203,0.01744902,122260.0,122210.0,0.06684771]
[1755113689400,0.53563542,122240.0,122230.0,0.19608]
[1755113689800,0.53563542,122240.0,122230.0,0.32484]
[1755113690422,0.53563542,122240.0,122230.0,0.19608]
[1755113690650,0.53563542,122240.0,122230.0,0.32484]
[1755113691213,0.53563542,122240.0,122230.0,0.19608]
[1755113691417,0.53563542,122240.0,122230.0,0.42676]
[1755113692862,0.53563542,122240.0,122230.0,0.51807]
[1755113693306,0.08272325,122240.0,122230.0,0.38935]
[1755113693940,0.08272325,122240.0,122230.0,0.51807]
[1755113694484,0.08272325,122240.0,122230.0,0.38935]
[1755113694853,0.53563542,122240.0,122230.0,0.28739]
[1755113695053,0.08272325,122240.0,122230.0,0.41611]
[1755113696624,0.47743217,122270.0,122230.0,0.09131]
[1755113696823,0.08272325,122260.0,122240.0,0.22003]
[1755113697170,0.08272325,122260.0,122250.0,0.22003]
[1755113697551,0.53563542,122260.0,122250.0,0.09131]
[1755113697719,0.53563542,122260.0,122250.0,0.22003]
[1755113697945,0.08272325,122260.0,122250.0,0.22003]
[1755113698361,0.08272325,122260.0,122250.0,0.22015071]
[1755113699440,0.45291217,122280.0,122250.0,0.22015071]
[1755113699649,0.08272325,122270.0,122260.0,0.09409]
[1755113699855,0.54074663,122270.0,122260.0,0.09409]
[1755113700164,0.53563542,122270.0,122260.0,0.22281]
[1755113700461,0.54072542,122270.0,122250.0,0.00012071]
[1755113700703,0.45291217,122260.0,122250.0,0.00012071]
[1755113700928,0.53563542,122260.0,122250.0,0.12880071]
[1755113701144,0.53563542,122260.0,122250.0,0.00012071]
[1755113701355,0.54072542,122260.0,122250.0,0.00012071]
[1755113701570,0.88072542,122260.0,122250.0,0.10208071]
[1755113701804,0.88072542,122260.0,122250.0,0.42684071]
[1755113702224,0.87563542,122260.0,122250.0,0.42684071]
[1755113702434,0.42272325,122260.0,122250.0,0.42684071]
[1755113702943,0.87563542,122260.0,122250.0,0.42684071]
[1755113703470,0.53563542,122260.0,122250.0,0.42684071]
[1755113704557,0.08272325,122260.0,122250.0,0.42684071]
[1755113704937,0.08272325,122260.0,122250.0,0.29816071]
[1755113705127,0.08272325,122260.0,122250.0,0.42684071]
[1755113706138,0.53563542,122260.0,122250.0,0.42684071]
[1755113706329,0.08272325,122260.0,122250.0,0.29816071]
[1755113706516,0.08272325,122260.0,122250.0,0.42684071]
[1755113707782,0.08272325,122260.0,122250.0,0.52093071]
[1755113709227,0.86268988,122290.0,122250.0,0.39225071]
[1755113709485,0.08272325,122280.0,122260.0,0.09409]
[1755113709642,0.08783446,122280.0,122260.0,0.22273]
[1755113711426,0.08783446,122280.0,122260.0,0.09409]
[1755113711561,0.08272325,122280.0,122270.0,0.12864]
[1755113711975,0.53325376,122310.0,122270.0,0.09409]
[1755113712214,0.52621399,122300.0,122280.0,0.12864]
[1755113712389,0.52110361,122300.0,122280.0,0.12864]
[1755113712722,0.86403361,122300.0,122290.0,0.12864]
[1755113712958,0.86619361,122300.0,122290.0,0.12864]
[1755113713935,0.86619361,122300.0,122290.0,0.12876071]
[1755113715105,0.42781325,122300.0,122290.0,0.12872071]
[1755113715309,0.89070561,122300.0,122290.0,0.00012071]
[1755113715512,0.42781325,122300.0,122290.0,0.12872071]
[1755113715926,0.86403361,122300.0,122290.0,0.12872071]
[1755113716671,0.86403361,122300.0,122290.0,0.00012071]
[1755113716872,0.86619361,122300.0,122290.0,0.12872071]
[1755113717656,0.08272325,122300.0,122290.0,0.00012071]
[1755113718250,0.08272325,122300.0,122290.0,0.12872071]
[1755113719587,0.46288836,122320.0,122290.0,0.00012071]
[1755113719588,0.46581836,122320.0,122290.0,0.00012071]
[1755113719811,0.08272325,122310.0,122290.0,0.00012071]
[1755113720010,0.08272325,122310.0,122300.0,0.1286]
[1755113720544,0.08272325,122310.0,122290.0,0.00012071]
[1755113720704,0.08272325,122310.0,122300.0,0.12856]
[1755113721503,0.08272325,122310.0,122300.0,0.29792]
[1755113721707,0.08272325,122310.0,122300.0,0.42648]
[1755113722817,0.08272325,122310.0,122300.0,0.32456]
[1755113724048,0.44131036,122330.0,122300.0,0.32456]
[1755113724198,0.08272325,122320.0,122300.0,0.32456]
[1755113724385,0.08272325,122320.0,122300.0,0.12856]
[1755113725012,0.08272325,122320.0,122290.0,0.17598325]
[1755113725348,0.08272325,122320.0,122300.0,0.30437583]
[1755113725526,0.08272325,122320.0,122300.0,0.17585583]
[1755113725725,0.08272325,122320.0,122310.0,0.12852]
[1755113725923,0.0314,122340.0,122300.0,0.42994257]
[1755113726134,0.11705325,122340.0,122310.0,0.22261]
[1755113726657,0.11705325,122340.0,122310.0,0.30436945]
[1755113726811,0.11705325,122340.0,122310.0,0.22261]
[1755113727021,0.11705325,122340.0,122320.0,0.12852]
[1755113727460,0.55543361,122340.0,122320.0,0.12852]
[1755113728497,0.11705325,122340.0,122320.0,0.12852]
[1755113728993,0.55543361,122340.0,122320.0,0.12852]
[1755113730414,0.11705325,122340.0,122320.0,0.12852]
[1755113731430,0.11705325,122340.0,122310.0,0.09409]
[1755113731648,0.11705325,122340.0,122330.0,0.29784]
[1755113732585,0.11705325,122340.0,122330.0,0.19596]
[1755113732932,0.11950233,122340.0,122330.0,0.19596]
[1755113734129,0.11950233,122340.0,122330.0,0.01180023]
[1755113734380,0.11950233,122340.0,122330.0,0.12844]
[1755113734582,0.11754233,122340.0,122330.0,0.12844]
[1755113737370,0.11950233,122340.0,122330.0,0.12844]
[1755113738098,0.11461233,122340.0,122330.0,0.12844]
[1755113738304,0.03188908,122340.0,122310.0,0.64740304]
[1755113738565,0.03502908,122340.0,122330.0,0.01162889]
[1755113738743,0.03502908,122340.0,122320.0,0.12844]
[1755113738970,0.03502908,122340.0,122310.0,0.29174593]
[1755113739268,0.03502908,122340.0,122320.0,0.1284]
[1755113739502,0.0051,122330.0,122310.0,0.09409]
[1755113739720,0.0051,122330.0,122320.0,0.01188935]
[1755113739941,0.0051,122330.0,122320.0,0.1284]
[1755113740180,0.0051,122330.0,122310.0,0.43409]
[1755113740402,0.0051,122330.0,122320.0,0.1284]
[1755113741517,0.0051,122330.0,122320.0,0.4262]
[1755113742271,0.11775233,122340.0,122320.0,0.2978]
[1755113742524,0.11775233,122340.0,122320.0,0.4262]
[1755113743551,0.11461233,122340.0,122320.0,0.4262]
[1755113743752,0.11775233,122340.0,122320.0,0.4262]
[1755113743956,0.00314,122330.0,122320.0,0.4262]
[1755113744116,0.0051,122330.0,122320.0,0.4262]
[1755113747498,0.11775233,122340.0,122320.0,0.53592]
[1755113747697,0.03502908,122340.0,122320.0,0.66428]
[1755113747933,0.03502908,122340.0,122320.0,0.53592]
[1755113748147,0.03502908,122340.0,122330.0,0.12836]
[1755113748292,0.03384908,122340.0,122330.0,0.12836]
[1755113748674,0.03384908,122340.0,122320.0,0.53592]
[1755113748675,0.48234031,122340.0,122320.0,0.53592]
[1755113748877,0.90523158,122330.0,122320.0,0.19592]
[1755113749104,1.00931071,122330.0,122320.0,0.19592]
[1755113749462,1.00931071,122330.0,122260.0,0.08766]
[1755113749705,0.44849123,122300.0,122280.0,0.34]
[1755113749876,0.53121448,122300.0,122280.0,0.34]
[1755113750110,0.53435448,122300.0,122280.0,0.35175617]
[1755113750312,0.53435448,122300.0,122290.0,0.12832]
[1755113750530,0.53631448,122300.0,122290.0,0.12832]
[1755113750708,0.08782325,122300.0,122290.0,0.12832]
[1755113750907,0.08782325,122300.0,122290.0,0.12844071]
[1755113751459,0.08782325,122300.0,122290.0,0.23032071]
[1755113751658,0.08782325,122300.0,122290.0,0.42624071]
[1755113754359,0.52604715,122300.0,122290.0,0.19604071]
[1755113755022,0.96427105,122300.0,122230.0,0.15679686]
[1755113755230,0.96427105,122300.0,122240.0,0.00014616]
[1755113755231,0.4382239,122270.0,122240.0,0.00014616]
[1755113755441,0.00196,122250.0,122240.0,0.00014616]
[1755113755850,0.0051,122250.0,122240.0,0.00014616]
[1755113756158,0.0051,122250.0,122240.0,0.34014616]
[1755113756371,0.08586325,122260.0,122240.0,0.00014616]
[1755113756741,0.08272325,122260.0,122240.0,0.00014616]
[1755113756947,0.00196,122250.0,122240.0,0.00014616]
[1755113757114,0.08468325,122250.0,122240.0,0.12846616]
[1755113757322,0.08782325,122250.0,122240.0,0.12846616]
[1755113757733,0.08782325,122250.0,122240.0,0.00014616]
[1755113758154,0.08782325,122250.0,122240.0,0.12846616]
[1755113759183,0.08272325,122250.0,122240.0,0.46846616]
[1755113760159,0.08595325,122250.0,122240.0,0.46846616]
[1755113760365,0.08595325,122250.0,122240.0,0.34014616]
[1755113760567,0.08595325,122250.0,122240.0,0.46846616]
[1755113760914,0.08595325,122250.0,122240.0,0.34014616]
[1755113761120,0.08805325,122250.0,122240.0,0.46846616]
[1755113761371,0.08272325,122250.0,122240.0,0.46846616]
[1755113761581,0.4382239,122300.0,122240.0,1.37691634]
[1755113761780,0.00323,122270.0,122240.0,1.24859634]
[1755113761972,0.08595325,122270.0,122250.0,0.12832]
[1755113762307,0.00533,122260.0,122240.0,1.16679006]
[1755113762534,0.00533,122260.0,122250.0,0.12832]
[1755113762917,0.00533,122260.0,122240.0,0.53614616]
[1755113763125,0.00533,122260.0,122250.0,0.12832]
[1755113764270,0.00533,122260.0,122240.0,0.53614616]
[1755113764511,0.00533,122260.0,122250.0,0.12832]
[1755113765106,0.00533,122260.0,122250.0,0.12828]
[1755113765309,0.08805325,122260.0,122250.0,0.12828]
[1755113765670,0.09316446,122260.0,122240.0,0.53614616]
[1755113765878,0.08272325,122250.0,122240.0,0.53614616]
[1755113766184,0.08272325,122250.0,122240.0,0.46842616]
[1755113766607,0.08805325,122250.0,122240.0,0.46842616]
[1755113767620,0.08805325,122250.0,122240.0,0.00014616]
[1755113767789,0.08805325,122250.0,122240.0,0.12842616]
[1755113768746,0.09316446,122250.0,122240.0,0.00014616]
[1755113769000,0.09060823,122250.0,122240.0,0.12842616]
[1755113769348,0.09060823,122250.0,122240.0,0.00014616]
[1755113769803,0.09060844,122250.0,122240.0,0.12842616]
[1755113770158,0.11768546,122250.0,122240.0,0.12842616]
[1755113770361,0.11768546,122250.0,122240.0,0.00014616]
[1755113770481,0.09316446,122250.0,122240.0,0.12842616]
[1755113771566,0.09316446,122250.0,122240.0,0.42638616]
[1755113773570,0.09316446,122250.0,122240.0,0.42634616]
[1755113773740,0.09316446,122250.0,122240.0,0.29810616]
[1755113774657,0.09316446,122250.0,122240.0,0.42634616]
[1755113777517,0.09316446,122250.0,122240.0,0.29810616]
[1755113777715,0.09316446,122250.0,122240.0,0.42634616]
[1755113778775,0.09316446,122250.0,122240.0,0.29810616]
[1755113778997,0.09316446,122250.0,122240.0,0.42634616]
[1755113779196,0.09316446,122250.0,122240.0,0.29810616]
[1755113779487,0.09316446,122250.0,122240.0,0.42634616]
[1755113779788,0.09316446,122250.0,122240.0,0.29810616]
[1755113780099,0.09316446,122250.0,122240.0,0.42634616]
[1755113783318,0.08272325,122250.0,122240.0,0.74723203]
[1755113783860,0.08272325,122250.0,122240.0,0.87543203]
[1755113786101,0.08272325,122250.0,122240.0,0.64531203]
[1755113786360,0.08272325,122250.0,122240.0,0.32434616]
[1755113787172,0.08272325,122250.0,122240.0,0.00014616]
[1755113787349,0.08272325,122250.0,122240.0,0.12830616]
[1755113788222,0.08805325,122250.0,122240.0,0.12830616]
[1755113789621,0.08595325,122250.0,122240.0,0.12830616]
[1755113790487,0.08795325,122250.0,122240.0,0.12826616]
[1755113791148,0.08595325,122250.0,122240.0,0.00014616]
[1755113791355,0.08272325,122250.0,122240.0,0.00014616]
[1755113791501,0.08591325,122250.0,122240.0,0.42630616]
[1755113791745,0.08791325,122250.0,122240.0,0.42630616]
[1755113792155,0.08791325,122250.0,122240.0,0.29818616]
[1755113792456,0.08791325,122250.0,122240.0,0.42630616]
[1755113793459,0.52644024,122250.0,122240.0,0.42630616]
[1755113793869,0.52644024,122250.0,122240.0,0.29818616]
[1755113794392,0.52644024,122250.0,122240.0,0.42630616]
[1755113794603,0.08791325,122250.0,122240.0,0.42630616]
[1755113794804,0.52644024,122250.0,122240.0,0.29818616]
[1755113795009,0.52644024,122250.0,122240.0,0.42630616]
[1755113795654,0.52644024,122250.0,122240.0,0.42626616]
[1755113796666,0.52644024,122250.0,122240.0,0.29818616]
[1755113796810,0.52644024,122250.0,122240.0,0.42630616]
[1755113797008,0.52644024,122250.0,122240.0,0.42626616]
[1755113797211,1.03388926,122250.0,122240.0,0.29818616]
[1755113797445,1.03388926,122250.0,122240.0,0.42626616]
[1755113797943,1.03388926,122250.0,122240.0,0.29818616]
[1755113798159,1.03388926,122250.0,122240.0,0.42626616]
[1755113800975,1.03388926,122250.0,122240.0,0.29818616]
[1755113801180,1.03388926,122250.0,122240.0,0.42626616]
[1755113802561,1.05841526,122250.0,122240.0,0.42626616]
[1755113803870,1.54903089,122250.0,122240.0,0.29818616]
[1755113804249,1.1105039,122250.0,122240.0,0.42626616]
[1755113804602,1.06641526,122250.0,122240.0,0.42626616]
[1755113805688,1.50494225,122250.0,122240.0,0.42626616]
[1755113805920,1.50494225,122250.0,122240.0,0.29818616]
[1755113806155,0.62788827,122250.0,122240.0,0.42626616]
[1755113806376,1.50494225,122250.0,122240.0,0.42626616]
[1755113806834,1.06641526,122250.0,122240.0,0.42626616]
[1755113807044,1.14089969,122250.0,122240.0,0.42626616]
[1755113807465,1.57942668,122250.0,122240.0,0.42626616]
[1755113808443,1.63742668,122250.0,122240.0,0.29818616]
[1755113808803,1.6592567,122250.0,122240.0,0.42626616]
[1755113808981,1.6592567,122250.0,122240.0,0.29818616]
[1755113809527,1.6592567,122250.0,122240.0,0.42626616]
[1755113809883,0.16744902,122220.0,122210.0,0.10196]
[1755113810080,0.70161427,122220.0,122210.0,0.42616]
[1755113810230,0.70480427,122220.0,122210.0,0.29808]
[1755113810430,0.71280427,122220.0,122210.0,0.42616]
[1755113810673,0.73733727,122220.0,122210.0,0.42616]
[1755113811181,0.73733727,122220.0,122210.0,0.29808]
[1755113811340,1.12698783,122220.0,122210.0,0.29808]
[1755113811545,1.07733727,122220.0,122210.0,0.29808]
[1755113811960,1.07733727,122220.0,122210.0,0.42616]
[1755113812322,1.10233727,122220.0,122210.0,0.29808]
[1755113812490,1.54377927,122220.0,122210.0,0.42616]
[1755113812637,1.55177927,122220.0,122210.0,0.29808]
[1755113812845,1.6342637,122220.0,122210.0,0.42616]
[1755113813250,0.35744902,122190.0,122180.0,0.0204]
[1755113813558,0.89161427,122190.0,122180.0,0.3446]
[1755113813759,0.89480427,122190.0,122180.0,0.3446]
[1755113814666,0.9193921,122190.0,122180.0,0.3446]
[1755113814841,0.93023569,122190.0,122180.0,0.21652]
[1755113815009,0.93023569,122190.0,122180.0,0.3446]
[1755113815425,0.15,122180.0,122140.0,0.31073706]
[1755113815658,0.53727646,122170.0,122150.0,0.28141]
[1755113815835,0.53216525,122170.0,122150.0,0.28141]
[1755113816045,0.58123585,122170.0,122150.0,0.28141]
[1755113816551,0.70480427,122160.0,122130.0,0.0185339]
[1755113816766,0.53727646,122150.0,122140.0,0.19616]
[1755113817083,0.53216525,122150.0,122140.0,0.32424]
[1755113817427,0.08272325,122150.0,122140.0,0.19616]
[1755113817633,0.43902446,122150.0,122140.0,0.19616]
[1755113817837,0.88335525,122150.0,122140.0,0.32424]
[1755113818109,0.88016525,122150.0,122140.0,0.32472818]
[1755113818500,0.87216525,122150.0,122140.0,0.32472818]
[1755113818682,0.87735525,122150.0,122140.0,0.32472818]
[1755113819047,0.87216525,122150.0,122140.0,0.32472818]
[1755113820272,0.90185925,122150.0,122140.0,0.19664818]
[1755113820687,1.06930827,122150.0,122140.0,0.19664818]
[1755113821111,1.06930827,122150.0,122140.0,0.32472818]
[1755113821548,0.61986627,122150.0,122140.0,0.32472818]
[1755113821744,1.06930827,122150.0,122140.0,0.32472818]
[1755113822303,1.04976925,122150.0,122140.0,0.19664818]
[1755113822590,1.04670925,122150.0,122140.0,0.32472818]
[1755113822816,0.59726725,122150.0,122140.0,0.19664818]
[1755113823016,1.04670925,122150.0,122140.0,0.32472818]
[1755113823436,0.10726725,122150.0,122140.0,0.32472818]
[1755113823650,0.10726725,122150.0,122140.0,0.40962818]
[1755113824091,0.11237846,122150.0,122140.0,0.40962818]
[1755113824298,0.55670925,122150.0,122140.0,0.32472818]
[1755113824521,0.55976925,122150.0,122140.0,0.32472818]
[1755113824931,0.55670925,122150.0,122140.0,0.32472818]
[1755113825507,0.10726725,122150.0,122140.0,0.32472818]
[1755113825716,0.10726725,122150.0,122140.0,0.19664818]
[1755113825948,0.56182046,122150.0,122140.0,0.32476818]
[1755113826148,0.55670925,122150.0,122140.0,0.32476818]
[1755113826770,0.10726725,122150.0,122140.0,0.32476818]
[1755113827337,0.55670925,122150.0,122140.0,0.32476818]
[1755113828514,0.56185925,122150.0,122140.0,0.32476818]
[1755113829857,0.55670925,122150.0,122140.0,0.32476818]
[1755113830053,0.08272325,122150.0,122140.0,0.19664818]
[1755113830258,0.53727646,122150.0,122140.0,0.19664818]
[1755113830458,0.53216525,122150.0,122140.0,0.32516818]
[1755113830645,0.53522525,122150.0,122140.0,0.32516818]
[1755113830858,0.53731525,122150.0,122140.0,0.32516818]
[1755113831246,0.53731525,122150.0,122140.0,0.19664818]
[1755113831247,0.94416296,122150.0,122140.0,0.19664818]
[1755113831620,0.94416296,122150.0,122140.0,0.32524818]
[1755113831972,0.94416296,122150.0,122140.0,0.19664818]
[1755113832326,1.11161198,122150.0,122140.0,0.32524818]
[1755113832483,1.11161198,122150.0,122140.0,0.19664818]
[1755113832701,1.11161198,122150.0,122140.0,0.32524818]
[1755113833335,0.59532227,122150.0,122140.0,0.19664818]
[1755113833542,1.02522525,122150.0,122140.0,0.32528818]
[1755113833701,0.57578325,122150.0,122140.0,0.32528818]
[1755113833905,1.02522525,122150.0,122140.0,0.32528818]
[1755113834256,1.04976925,122150.0,122140.0,0.32528818]
[1755113834464,1.05185925,122150.0,122140.0,0.32528818]
[1755113836362,0.60241725,122150.0,122140.0,0.32528818]
[1755113836567,0.59726725,122150.0,122140.0,0.32528818]
[1755113836936,0.70670925,122150.0,122140.0,0.32528818]
[1755113837153,0.10726725,122150.0,122140.0,0.19664818]
[1755113837357,0.10726725,122150.0,122140.0,0.32520818]
[1755113838261,0.10726725,122150.0,122140.0,0.73099018]
[1755113838437,0.08272325,122150.0,122140.0,0.85955018]
[1755113838592,0.08272325,122150.0,122140.0,0.73099018]
[1755113838952,0.08272325,122150.0,122140.0,0.85955018]
[1755113839355,0.08272325,122150.0,122140.0,0.73099018]
[1755113839605,0.08272325,122150.0,122140.0,0.85955018]
[1755113841010,0.024538,122180.0,122140.0,0.82105076]
[1755113841213,0.08272325,122170.0,122160.0,0.449442]
[1755113841407,0.08272325,122170.0,122160.0,0.636382]
[1755113841754,0.08272325,122170.0,122160.0,0.764902]
[1755113841946,0.08272325,122170.0,122160.0,0.31546]
[1755113842487,0.08272325,122170.0,122160.0,0.0849]
[1755113842602,0.08272325,122170.0,122160.0,0.12852]
[1755113843342,0.08272325,122170.0,122140.0,0.71764263]
[1755113843542,0.08272325,122170.0,122160.0,0.43912126]
[1755113843743,0.08272325,122170.0,122160.0,0.0849]
[1755113844543,0.08272325,122170.0,122160.0,0.21334]
[1755113844923,0.08272325,122170.0,122160.0,0.0849]
[1755113845175,0.08272325,122170.0,122160.0,0.21334]
[1755113845411,0.02306,122200.0,122160.0,0.61406709]
[1755113845540,0.08272325,122190.0,122170.0,0.43912126]
[1755113845739,0.08272325,122190.0,122170.0,0.0849]
[1755113845943,0.08272325,122190.0,122180.0,0.1284]
[1755113846377,0.08272325,122190.0,122170.0,0.16675239]
[1755113846580,0.08272325,122190.0,122180.0,0.12848]
[1755113847147,0.08272325,122190.0,122180.0,0.12896818]
[1755113847336,0.08272325,122190.0,122180.0,0.13933562]
[1755113848589,0.02,122200.0,122180.0,0.53487688]
[1755113848818,0.02,122200.0,122190.0,0.60586101]
[1755113848979,0.02,122200.0,122190.0,0.73430101]
[1755113849182,0.02,122200.0,122190.0,0.29513975]
[1755113849381,0.02,122200.0,122190.0,0.94586101]
[1755113849584,0.02,122200.0,122190.0,1.07430101]
[1755113849804,0.02,122200.0,122190.0,0.94586101]
[1755113850006,0.02,122200.0,122190.0,1.07426101]
[1755113850255,0.02,122200.0,122190.0,0.99242126]
[1755113850667,0.02,122200.0,122190.0,0.4249]
[1755113850870,0.02,122200.0,122190.0,0.55326]
[1755113851178,0.02,122200.0,122190.0,0.4249]
[1755113851322,0.02,122200.0,122190.0,0.55338]
[1755113851527,0.02,122200.0,122190.0,0.85158]
[1755113852220,0.02,122200.0,122190.0,1.29070126]
[1755113854958,0.02,122200.0,122190.0,1.37254101]
[1755113855204,0.02,122200.0,122190.0,0.85158]
[1755113855404,0.02,122200.0,122190.0,1.29070126]
[1755113855550,0.02,122200.0,122190.0,1.18870126]
[1755113855749,0.02,122200.0,122190.0,1.27054101]
[1755113856542,0.02,122200.0,122190.0,0.74958]
[1755113856659,0.02,122200.0,122190.0,0.6211]
[1755113856858,0.02,122200.0,122190.0,1.18878126]
[1755113857260,0.02,122200.0,122190.0,0.86402126]
[1755113857455,0.02,122200.0,122190.0,0.55346]
[1755113857825,0.10784325,122200.0,122180.0,0.01085562]
[1755113858022,0.10784325,122200.0,122190.0,0.12856]
[1755113858436,0.10784325,122200.0,122180.0,0.35085562]
[1755113858588,0.10784325,122200.0,122190.0,0.12852]
[1755113859633,0.10784325,122200.0,122180.0,0.78997688]
[1755113859841,0.10784325,122200.0,122190.0,0.12852]
[1755113860245,0.10784325,122200.0,122180.0,0.78997688]
[1755113860456,0.10568325,122200.0,122190.0,0.12848]
[1755113860685,0.10272325,122200.0,122190.0,0.43912126]
[1755113861030,0.10784325,122200.0,122190.0,0.43912126]
[1755113861455,0.10784325,122200.0,122190.0,0.73728126]
[1755113861856,0.10784325,122200.0,122190.0,0.86576126]
[1755113862677,0.10784325,122200.0,122190.0,0.42664]
[1755113864782,0.10784325,122200.0,122190.0,0.19616]
[1755113864988,0.10784325,122200.0,122190.0,0.76364126]
[1755113865483,0.10784325,122200.0,122190.0,0.76360126]
[1755113865785,0.10784325,122200.0,122190.0,0.56744126]
[1755113866730,0.10784325,122200.0,122190.0,0.12832]
[1755113867829,0.10784325,122200.0,122180.0,0.78997688]
[1755113868263,0.10784325,122200.0,122190.0,0.12816]
[1755113868664,0.10784325,122200.0,122180.0,0.35085562]
[1755113868821,0.10488325,122200.0,122190.0,0.12812]
[1755113869547,0.10784325,122200.0,122190.0,0.12812]
[1755113869951,0.10784325,122200.0,122190.0,0.12816]
[1755113871017,0.10784325,122200.0,122180.0,0.35085562]
[1755113871203,0.02216,122200.0,122190.0,0.12816]
[1755113871443,0.10488325,122200.0,122190.0,0.4262]
[1755113871859,0.10784325,122200.0,122190.0,0.4262]
[1755113873423,0.10272325,122200.0,122190.0,0.76336126]
[1755113873624,0.10272325,122200.0,122190.0,0.32424]
[1755113874366,0.10568325,122200.0,122190.0,0.32424]
[1755113875214,0.10784325,122200.0,122190.0,0.32424]
[1755113876842,0.10784325,122200.0,122190.0,0.77360601]
[1755113877446,0.10568325,122200.0,122190.0,0.57748601]
[1755113879310,0.10568325,122200.0,122190.0,0.12812]
[1755113879515,0.10568325,122200.0,122190.0,0.57748601]
[1755113879717,0.10773325,122200.0,122190.0,0.57748601]
[1755113879968,0.10773325,122200.0,122190.0,0.12812]
[1755113880159,0.10773325,122200.0,122190.0,0.57748601]
[1755113881355,0.10773325,122200.0,122190.0,0.44936601]
[1755113881531,0.02,122200.0,122190.0,0.74744601]
[1755113881885,0.02,122200.0,122190.0,0.96212601]
[1755113882528,0.02,122200.0,122190.0,0.51276]
[1755113882729,0.02,122200.0,122190.0,0.96212601]
[1755113884389,0.02,122200.0,122190.0,1.30212601]
[1755113884737,0.02,122200.0,122190.0,0.87592601]
[1755113884932,0.10802325,122200.0,122190.0,0.34]
[1755113885185,0.10802325,122200.0,122190.0,0.46808]
[1755113885435,0.10802325,122200.0,122190.0,0.91744601]
[1755113885896,0.10802325,122200.0,122190.0,0.46808]
[1755113886075,0.10802325,122200.0,122190.0,0.91744601]
[1755113886708,0.10802325,122200.0,122190.0,0.46808]
[1755113888677,0.10272325,122200.0,122190.0,0.90694252]
[1755113890909,0.10272325,122200.0,122190.0,0.77886252]
[1755113891062,0.02,122200.0,122190.0,0.90694252]
[1755113891485,0.02,122200.0,122190.0,1.20502252]
[1755113893381,0.02325,122200.0,122190.0,1.20502252]
[1755113895532,0.0253,122200.0,122190.0,1.10306252]
[1755113896375,0.0203,122200.0,122190.0,1.10306252]
[1755113897067,0.10302325,122200.0,122190.0,0.53612]
[1755113897275,0.10302325,122200.0,122190.0,0.46808]
[1755113897535,0.10502325,122200.0,122190.0,0.46808]
[1755113898194,0.10502325,122200.0,122190.0,0.47008]
[1755113900129,0.10502325,122200.0,122190.0,0.342]
[1755113900334,0.10502325,122200.0,122190.0,0.47008]
[1755113900540,0.10502325,122200.0,122190.0,0.342]
[1755113900750,0.10502325,122200.0,122190.0,0.47008]
[1755113900957,0.10502325,122200.0,122190.0,0.342]
[1755113901184,0.10502325,122200.0,122190.0,0.13004]
[1755113901397,0.11013446,122200.0,122190.0,0.13004]
[1755113901556,0.11013446,122200.0,122190.0,0.42812]
[1755113902645,0.11013446,122200.0,122190.0,0.19812]
[1755113902846,0.54899698,122200.0,122190.0,0.19812]
[1755113903062,0.54388577,122200.0,122190.0,0.19812]
[1755113903286,0.54388577,122200.0,122190.0,0.002]
[1755113903489,0.56133479,122200.0,122190.0,0.13004]
[1755113903691,0.56133479,122200.0,122190.0,0.002]
[1755113904010,0.12247227,122200.0,122190.0,0.13004]
[1755113904295,0.12758348,122200.0,122190.0,0.13004]
[1755113905085,0.12758348,122200.0,122190.0,0.13008]
[1755113906059,0.566446,122200.0,122190.0,0.002]
[1755113906258,0.56133479,122200.0,122190.0,0.002]
[1755113906614,0.56133479,122200.0,122190.0,0.13004]
[1755113907583,0.12247227,122200.0,122190.0,0.002]
[1755113907773,0.12758348,122200.0,122190.0,0.13004]
[1755113908586,0.15211948,122200.0,122190.0,0.13004]
[1755113908824,0.6016775,122200.0,122190.0,0.13004]
[1755113909023,0.14700827,122200.0,122190.0,0.13004]
[1755113909387,0.5996775,122200.0,122190.0,0.13004]
[1755113909542,0.59456629,122200.0,122190.0,0.13004]
[1755113910657,0.59856629,122200.0,122190.0,0.13004]
[1755113911057,0.59456629,122200.0,122190.0,0.002]
[1755113911302,0.60056629,122200.0,122190.0,0.13104]
[1755113911611,0.75056629,122200.0,122190.0,0.4292]
[1755113911966,0.75556629,122200.0,122190.0,0.4302]
[1755113912378,0.75056629,122200.0,122190.0,0.4272]
[1755113912663,0.15800827,122200.0,122190.0,0.30016]
[1755113912846,0.7626775,122200.0,122190.0,0.4282]
[1755113913020,0.75756629,122200.0,122190.0,0.4282]
[1755113913434,0.75756629,122200.0,122190.0,0.42824]
[1755113914192,0.30800827,122200.0,122190.0,0.42824]